[Event "*** Titled Tuesday Blitz"]
[Site "Chess.com"]
[Date "2021.04.20"]
[Round "1"]
[White "NovikovaGalina"]
[Black "biostatistician"]
[Result "0-1"]
[WhiteElo "2314"]
[BlackElo "2613"]
[TimeControl "180+1"]
[EndTime "10:09:47 PDT"]
[Termination "biostatistician won on time"]

1. e4 {[%clk 0:02:51.9]} 1... e6 {[%clk 0:02:59.7]} 2. Nf3 {[%clk 0:02:49.7]}
2... d5 {[%clk 0:03:00.6]} 3. e5 {[%clk 0:02:48.3]} 3... b6 {[%clk 0:03:00.3]}
4. b4 {[%clk 0:02:47]} 4... Bxb4 {[%clk 0:02:57.2]} 5. c3 {[%clk 0:02:47.2]}
5... Be7 {[%clk 0:02:48.3]} 6. d4 {[%clk 0:02:48.1]} 6... c5 {[%clk 0:02:47.5]}
7. Bd3 {[%clk 0:02:46.9]} 7... Qd7 {[%clk 0:02:43]} 8. O-O {[%clk 0:02:41.2]}
8... Ba6 {[%clk 0:02:43.3]} 9. a4 {[%clk 0:02:40.4]} 9... Bxd3 {[%clk
0:02:43.4]} 10. Qxd3 {[%clk 0:02:41.1]} 10... Nc6 {[%clk 0:02:44.1]} 11. Na3
{[%clk 0:02:38.2]} 11... c4 {[%clk 0:02:40.6]} 12. Qe2 {[%clk 0:02:33.8]} 12...
Na5 {[%clk 0:02:41.1]} 13. Bf4 {[%clk 0:02:11.9]} 13... Nb3 {[%clk 0:02:28]} 14.
Ra2 {[%clk 0:02:12.1]} 14... Qxa4 {[%clk 0:02:26.9]} 15. Qb2 {[%clk 0:01:33.9]}
15... Bxa3 {[%clk 0:02:26.6]} 16. Rxa3 {[%clk 0:01:34.8]} 16... Qd7 {[%clk
0:02:26.7]} 17. Nd2 {[%clk 0:01:26.3]} 17... Nxd2 {[%clk 0:02:26.6]} 18. Qxd2
{[%clk 0:01:27.2]} 18... Ne7 {[%clk 0:02:26.5]} 19. Qe3 {[%clk 0:01:18.4]} 19...
O-O {[%clk 0:02:25.9]} 20. Qg3 {[%clk 0:01:18.1]} 20... a5 {[%clk 0:02:22.8]}
21. h3 {[%clk 0:01:15.3]} 21... b5 {[%clk 0:02:21.1]} 22. h4 {[%clk 0:01:14.4]}
22... b4 {[%clk 0:02:13.5]} 23. Raa1 {[%clk 0:01:08]} 23... Nf5 {[%clk
0:02:02.1]} 24. Qh3 {[%clk 0:01:03.5]} 24... bxc3 {[%clk 0:02:01.2]} 25. Qxc3
{[%clk 0:01:03.6]} 25... Nxh4 {[%clk 0:01:56.6]} 26. Rxa5 {[%clk 0:01:00]} 26...
Rxa5 {[%clk 0:01:55.3]} 27. Qxa5 {[%clk 0:01:00.6]} 27... Rc8 {[%clk 0:01:50.7]}
28. Qc3 {[%clk 0:01:00.2]} 28... Qa4 {[%clk 0:01:47.8]} 29. Rb1 {[%clk
0:00:52.3]} 29... Qa2 {[%clk 0:01:36.2]} 30. Rb7 {[%clk 0:00:51.9]} 30... Qe2
{[%clk 0:01:24.2]} 31. Qb4 {[%clk 0:00:38.1]} 31... Qe4 {[%clk 0:01:03.7]} 32.
f3 {[%clk 0:00:18.9]} 32... Qe2 {[%clk 0:00:41.1]} 33. Qb2 {[%clk 0:00:16.8]}
33... Qxb2 {[%clk 0:00:33.2]} 34. Rxb2 {[%clk 0:00:17.7]} 34... Nf5 {[%clk
0:00:33.8]} 35. Rd2 {[%clk 0:00:14.3]} 35... c3 {[%clk 0:00:34]} 36. Rd3 {[%clk
0:00:13.6]} 36... c2 {[%clk 0:00:33.3]} 37. Bc1 {[%clk 0:00:13.2]} 37... Rc4
{[%clk 0:00:33.1]} 38. Kf2 {[%clk 0:00:12.8]} 38... Nxd4 {[%clk 0:00:32.2]} 39.
Ke3 {[%clk 0:00:12]} 39... Nf5+ {[%clk 0:00:31]} 40. Kd2 {[%clk 0:00:12.5]}
40... h5 {[%clk 0:00:30.7]} 41. Ra3 {[%clk 0:00:11.9]} 41... Kh7 {[%clk
0:00:29.6]} 42. Ra7 {[%clk 0:00:11.9]} 42... g6 {[%clk 0:00:30]} 43. Rxf7+
{[%clk 0:00:11]} 43... Kg8 {[%clk 0:00:27.8]} 44. Rf6 {[%clk 0:00:11.9]} 44...
Nd4 {[%clk 0:00:23.3]} 45. Rxg6+ {[%clk 0:00:11]} 45... Kf7 {[%clk 0:00:23.7]}
46. Rf6+ {[%clk 0:00:10.8]} 46... Ke7 {[%clk 0:00:24]} 47. Ba3+ {[%clk
0:00:04.9]} 47... Kd7 {[%clk 0:00:23.3]} 48. Rf7+ {[%clk 0:00:05]} 48... Kc6
{[%clk 0:00:23.6]} 49. Rf8 {[%clk 0:00:03]} 49... Nb3+ {[%clk 0:00:23.5]} 50.
Ke2 {[%clk 0:00:03.6]} 50... Ra4 {[%clk 0:00:19.5]} 51. Rc8+ {[%clk 0:00:01.9]}
51... Kd7 {[%clk 0:00:20.1]} 52. Rxc2 {[%clk 0:00:02.8]} 52... Rxa3 {[%clk
0:00:20.6]} 53. Kf2 {[%clk 0:00:03]} 53... Nd4 {[%clk 0:00:20.7]} 54. Rb2 {[%clk
0:00:03]} 54... Rb3 {[%clk 0:00:19.9]} 55. Ra2 {[%clk 0:00:02.5]} 55... Nf5
{[%clk 0:00:20.3]} 56. g4 {[%clk 0:00:01.5]} 56... hxg4 {[%clk 0:00:19.7]} 57.
fxg4 {[%clk 0:00:02.4]} 57... Nd4 {[%clk 0:00:18.3]} 58. Ra7+ {[%clk 0:00:03.3]}
58... Ke8 {[%clk 0:00:18.7]} 59. g5 {[%clk 0:00:02.8]} 59... Rf3+ {[%clk
0:00:18.1]} 60. Kg2 {[%clk 0:00:02.5]} 60... Rf5 {[%clk 0:00:19]} 61. g6 {[%clk
0:00:03.4]} 61... Rg5+ {[%clk 0:00:19.4]} 62. Kf2 {[%clk 0:00:01.9]} 62... Rxg6
{[%clk 0:00:20.3]} 63. Ke3 {[%clk 0:00:02.6]} 63... Nf5+ {[%clk 0:00:20.2]} 64.
Kf4 {[%clk 0:00:02.8]} 64... Rg1 {[%clk 0:00:19.7]} 65. Ra6 {[%clk 0:00:03.7]}
65... Kf7 {[%clk 0:00:19.5]} 66. Ra7+ {[%clk 0:00:03.5]} 66... Ne7 {[%clk
0:00:20]} 67. Ra8 {[%clk 0:00:04.4]} 67... Re1 {[%clk 0:00:20.2]} 68. Ra6 {[%clk
0:00:01.6]} 68... Re4+ {[%clk 0:00:20.4]} 69. Kf3 {[%clk 0:00:01.2]} 69... Rxe5
{[%clk 0:00:21.3]} 70. Rd6 {[%clk 0:00:01.9]} 70... Kf6 {[%clk 0:00:21.7]} 71.
Rd7 {[%clk 0:00:02.6]} 71... Rh5 {[%clk 0:00:21.7]} 72. Rd8 {[%clk 0:00:03.5]}
72... Ke5 {[%clk 0:00:22.1]} 73. Kg4 {[%clk 0:00:04.4]} 73... Rf5 {[%clk
0:00:21.5]} 74. Kg3 {[%clk 0:00:03.7]} 74... Ng6 {[%clk 0:00:21.1]} 75. Kg2
{[%clk 0:00:04.6]} 75... Nf4+ {[%clk 0:00:22]} 76. Kg1 {[%clk 0:00:04.1]} 76...
d4 {[%clk 0:00:22.9]} 77. Rd7 {[%clk 0:00:03.4]} 77... d3 {[%clk 0:00:23.8]} 78.
Kf2 {[%clk 0:00:03.9]} 78... Ke4 {[%clk 0:00:24.2]} 79. Ke1 {[%clk 0:00:04.5]}
79... e5 {[%clk 0:00:25.1]} 80. Re7 {[%clk 0:00:05]} 80... Kd4 {[%clk
0:00:24.3]} 81. Kd2 {[%clk 0:00:05.9]} 81... Nd5 {[%clk 0:00:24]} 82. Rd7 {[%clk
0:00:05.8]} 82... Rf2+ {[%clk 0:00:24.4]} 83. Ke1 {[%clk 0:00:06.3]} 83... Ra2
{[%clk 0:00:25.1]} 84. Re7 {[%clk 0:00:02.7]} 84... e4 {[%clk 0:00:25.4]} 85.
Rd7 {[%clk 0:00:02.9]} 85... e3 {[%clk 0:00:25.8]} 86. Kf1 {[%clk 0:00:02.1]}
86... d2 {[%clk 0:00:24.7]} 87. Ke2 {[%clk 0:00:02.2]} 87... Ra1 {[%clk
0:00:24.8]} 0-1

[Event "*** Titled Tuesday Blitz"]
[Site "Chess.com"]
[Date "2021.04.20"]
[Round "2"]
[White "AlhosaniOmran1"]
[Black "CSB7"]
[Result "1/2-1/2"]
[WhiteElo "2517"]
[BlackElo "2747"]
[TimeControl "180+1"]
[EndTime "10:11:07 PDT"]
[Termination "Game drawn by agreement"]

1. d4 {[%clk 0:02:59.6]} 1... Nf6 {[%clk 0:02:57.5]} 2. c4 {[%clk 0:03:00.5]}
2... c6 {[%clk 0:02:55.1]} 3. Nc3 {[%clk 0:02:59.6]} 3... d5 {[%clk 0:02:55.4]}
4. cxd5 {[%clk 0:02:58.6]} 4... cxd5 {[%clk 0:02:55.4]} 5. Bf4 {[%clk
0:02:59.2]} 5... Nc6 {[%clk 0:02:55.4]} 6. e3 {[%clk 0:02:58.5]} 6... Bf5 {[%clk
0:02:53.4]} 7. Nf3 {[%clk 0:02:54.6]} 7... e6 {[%clk 0:02:53.1]} 8. Bd3 {[%clk
0:02:53]} 8... Bxd3 {[%clk 0:02:51.9]} 9. Qxd3 {[%clk 0:02:53]} 9... Bd6 {[%clk
0:02:50.2]} 10. Bxd6 {[%clk 0:02:47.6]} 10... Qxd6 {[%clk 0:02:51.1]} 11. O-O
{[%clk 0:02:48.5]} 11... O-O {[%clk 0:02:51.6]} 1/2-1/2

[Event "*** Titled Tuesday Blitz"]
[Site "Chess.com"]
[Date "2021.04.20"]
[Round "2"]
[White "NovikovaGalina"]
[Black "KonstantinB_1983"]
[Result "0-1"]
[WhiteElo "2310"]
[BlackElo "2503"]
[TimeControl "180+1"]
[EndTime "10:12:12 PDT"]
[Termination "KonstantinB_1983 won by resignation"]

1. e4 {[%clk 0:03:00.9]} 1... d5 {[%clk 0:02:59.1]} 2. exd5 {[%clk 0:03:00.5]}
2... Qxd5 {[%clk 0:02:59.6]} 3. Nf3 {[%clk 0:03:00.1]} 3... Bg4 {[%clk
0:02:58.4]} 4. Be2 {[%clk 0:03:00.4]} 4... Nc6 {[%clk 0:02:58.2]} 5. d4 {[%clk
0:02:59.6]} 5... Nf6 {[%clk 0:02:56.1]} 6. c4 {[%clk 0:02:58.7]} 6... Qf5 {[%clk
0:02:55]} 7. Nc3 {[%clk 0:02:56.8]} 7... O-O-O {[%clk 0:02:54.2]} 8. Be3 {[%clk
0:02:53.1]} 8... e5 {[%clk 0:02:51.4]} 9. d5 {[%clk 0:02:52.2]} 9... e4 {[%clk
0:02:39]} 10. Nd4 {[%clk 0:02:50]} 10... Nxd4 {[%clk 0:02:36.4]} 11. Qxd4 {[%clk
0:02:47.4]} 11... c5 {[%clk 0:02:31.8]} 12. Qd2 {[%clk 0:02:41.2]} 12... Bxe2
{[%clk 0:02:28.1]} 13. Nxe2 {[%clk 0:02:42.1]} 13... Bd6 {[%clk 0:02:27.4]} 14.
Ng3 {[%clk 0:02:41.6]} 14... Qe5 {[%clk 0:02:23.8]} 15. b4 {[%clk 0:02:32.3]}
15... Qxa1+ {[%clk 0:02:22.2]} 0-1

[Event "*** Titled Tuesday Blitz"]
[Site "Chess.com"]
[Date "2021.04.20"]
[Round "2"]
[White "ecwinslow"]
[Black "martinique24"]
[Result "0-1"]
[WhiteElo "2286"]
[BlackElo "2481"]
[TimeControl "180+1"]
[EndTime "10:12:12 PDT"]
[Termination "martinique24 won by resignation"]

1. e4 {[%clk 0:03:00.9]} 1... c6 {[%clk 0:02:47.1]} 2. d4 {[%clk 0:02:59.1]}
2... d5 {[%clk 0:02:45.9]} 3. exd5 {[%clk 0:02:59.7]} 3... cxd5 {[%clk
0:02:45.3]} 4. c4 {[%clk 0:03:00.5]} 4... Nf6 {[%clk 0:02:43.2]} 5. Nc3 {[%clk
0:03:00.5]} 5... g6 {[%clk 0:02:41.6]} 6. Nf3 {[%clk 0:03:00.4]} 6... Bg7 {[%clk
0:02:41.4]} 7. Be2 {[%clk 0:03:00.4]} 7... O-O {[%clk 0:02:40.9]} 8. Kf1 {[%clk
0:02:59.3]} 8... dxc4 {[%clk 0:02:38.3]} 9. Bxc4 {[%clk 0:02:56.3]} 9... b6
{[%clk 0:02:17.9]} 10. h3 {[%clk 0:02:48.7]} 10... Bb7 {[%clk 0:02:13.7]} 11.
Kg1 {[%clk 0:02:44.6]} 11... Nbd7 {[%clk 0:02:01.4]} 12. Kh2 {[%clk 0:02:39.3]}
12... Qc7+ {[%clk 0:02:00.1]} 13. g3 {[%clk 0:02:38.1]} 13... Qxc4 {[%clk
0:01:57.1]} 0-1

[Event "*** Titled Tuesday Blitz"]
[Site "Chess.com"]
[Date "2021.04.20"]
[Round "2"]
[White "Salem-AR"]
[Black "AlexPapasimakopoulos"]
[Result "1-0"]
[WhiteElo "2966"]
[BlackElo "2601"]
[TimeControl "180+1"]
[EndTime "10:12:15 PDT"]
[Termination "Salem-AR won by resignation"]

1. d4 {[%clk 0:02:59.8]} 1... e6 {[%clk 0:02:59.6]} 2. c4 {[%clk 0:03:00]} 2...
Nf6 {[%clk 0:02:59.9]} 3. Nf3 {[%clk 0:02:59.5]} 3... Bb4+ {[%clk 0:03:00.3]} 4.
Nbd2 {[%clk 0:02:59.5]} 4... b6 {[%clk 0:03:00.3]} 5. a3 {[%clk 0:02:59.8]} 5...
Bxd2+ {[%clk 0:03:00.7]} 6. Qxd2 {[%clk 0:03:00.7]} 6... Bb7 {[%clk 0:03:01.2]}
7. e3 {[%clk 0:03:01.3]} 7... O-O {[%clk 0:03:01.7]} 8. Be2 {[%clk 0:03:01.6]}
8... Ne4 {[%clk 0:03:02.4]} 9. Qc2 {[%clk 0:03:02]} 9... f5 {[%clk 0:03:02.8]}
10. O-O {[%clk 0:03:01.2]} 10... Rf6 {[%clk 0:03:02.9]} 11. b4 {[%clk
0:02:57.3]} 11... Rg6 {[%clk 0:03:02.9]} 12. d5 {[%clk 0:02:57.4]} 12... exd5
{[%clk 0:03:01.7]} 13. Nd4 {[%clk 0:02:57.5]} 13... dxc4 {[%clk 0:02:57.7]} 14.
f3 {[%clk 0:02:56.8]} 14... Qg5 {[%clk 0:02:48.5]} 15. Bxc4+ {[%clk 0:02:54.1]}
15... Kh8 {[%clk 0:02:37]} 16. fxe4 {[%clk 0:02:50.5]} 16... Bxe4 {[%clk
0:02:37.9]} 17. Qxe4 {[%clk 0:02:50.9]} 17... Nc6 {[%clk 0:02:36.1]} 18. Rxf5
{[%clk 0:02:48.8]} 18... Qh6 {[%clk 0:02:20.7]} 19. Nxc6 {[%clk 0:02:45.4]}
19... Rxc6 {[%clk 0:02:20.7]} 20. Bb2 {[%clk 0:02:43.6]} 1-0

[Event "*** Titled Tuesday Blitz"]
[Site "Chess.com"]
[Date "2021.04.20"]
[Round "2"]
[White "SanchezKelvin"]
[Black "bilelou"]
[Result "0-1"]
[WhiteElo "100"]
[BlackElo "2612"]
[TimeControl "180+1"]
[EndTime "10:12:29 PDT"]
[Termination "bilelou won by resignation"]

1. d4 {[%clk 0:02:58.5]} 1... Nf6 {[%clk 0:02:59.5]} 2. c4 {[%clk 0:02:58.4]}
2... c5 {[%clk 0:02:57.3]} 3. d5 {[%clk 0:02:58.3]} 3... e5 {[%clk 0:02:57.9]}
4. dxe6 {[%clk 0:02:57.2]} 4... fxe6 {[%clk 0:02:56.6]} 5. Nf3 {[%clk
0:02:57.5]} 5... d5 {[%clk 0:02:57]} 6. g3 {[%clk 0:02:57.7]} 6... Nc6 {[%clk
0:02:57]} 7. Bg2 {[%clk 0:02:57.5]} 7... Be7 {[%clk 0:02:56.6]} 8. O-O {[%clk
0:02:57.6]} 8... O-O {[%clk 0:02:57.2]} 9. Nc3 {[%clk 0:02:57.8]} 9... d4 {[%clk
0:02:56.8]} 10. Na4 {[%clk 0:02:56.6]} 10... e5 {[%clk 0:02:57.2]} 11. Bg5
{[%clk 0:02:54]} 11... Be6 {[%clk 0:02:48.4]} 12. Nd2 {[%clk 0:02:53.2]} 12...
Qd7 {[%clk 0:02:46.5]} 13. Bxf6 {[%clk 0:02:52.6]} 13... gxf6 {[%clk 0:02:47.4]}
14. Rb1 {[%clk 0:02:49]} 14... f5 {[%clk 0:02:46.3]} 15. a3 {[%clk 0:02:47.6]}
15... Rac8 {[%clk 0:02:43.3]} 16. Qc2 {[%clk 0:02:22.4]} 16... e4 {[%clk
0:02:41.8]} 17. f3 {[%clk 0:02:17.6]} 17... d3 {[%clk 0:02:30.7]} 18. exd3
{[%clk 0:02:16.1]} 18... Nd4 {[%clk 0:02:31.6]} 19. Qd1 {[%clk 0:02:08.6]} 19...
e3 {[%clk 0:02:31.5]} 0-1

[Event "*** Titled Tuesday Blitz"]
[Site "Chess.com"]
[Date "2021.04.20"]
[Round "2"]
[White "grzechu96"]
[Black "ClydeHillKid"]
[Result "1-0"]
[WhiteElo "2661"]
[BlackElo "2423"]
[TimeControl "180+1"]
[EndTime "10:12:51 PDT"]
[Termination "grzechu96 won by resignation"]

1. e4 {[%clk 0:03:00.9]} 1... e6 {[%clk 0:03:00]} 2. d4 {[%clk 0:02:59.9]} 2...
d5 {[%clk 0:03:00.5]} 3. Nc3 {[%clk 0:03:00.1]} 3... Nf6 {[%clk 0:03:01.1]} 4.
Bg5 {[%clk 0:02:59.5]} 4... Be7 {[%clk 0:03:01.2]} 5. e5 {[%clk 0:02:59.3]} 5...
Nfd7 {[%clk 0:03:01.7]} 6. h4 {[%clk 0:02:59.6]} 6... Bxg5 {[%clk 0:03:02.2]} 7.
hxg5 {[%clk 0:02:56.7]} 7... Qxg5 {[%clk 0:03:03.1]} 8. Nh3 {[%clk 0:02:56.4]}
8... Qe7 {[%clk 0:03:03.4]} 9. Qg4 {[%clk 0:02:55.4]} 9... g6 {[%clk 0:03:03.7]}
10. O-O-O {[%clk 0:02:52.6]} 10... Nc6 {[%clk 0:03:03.9]} 11. Ng5 {[%clk
0:02:51.6]} 11... h5 {[%clk 0:03:03.4]} 12. Qf4 {[%clk 0:02:51.8]} 12... Nb6
{[%clk 0:03:03.7]} 13. g4 {[%clk 0:02:51]} 13... h4 {[%clk 0:03:03.4]} 14. Bg2
{[%clk 0:02:42.5]} 14... Bd7 {[%clk 0:03:02.2]} 15. Rh3 {[%clk 0:02:32.8]} 15...
O-O-O {[%clk 0:03:02]} 16. a3 {[%clk 0:02:28.9]} 16... Rdf8 {[%clk 0:02:59.5]}
17. Rf3 {[%clk 0:02:09.2]} 17... Be8 {[%clk 0:02:54.7]} 18. Qe3 {[%clk
0:01:51.1]} 18... Nc4 {[%clk 0:02:39.6]} 19. Qf4 {[%clk 0:01:51.1]} 19... f6
{[%clk 0:02:39.7]} 20. exf6 {[%clk 0:01:51.3]} 20... Rxf6 {[%clk 0:02:39.5]} 21.
Qxf6 {[%clk 0:01:50.6]} 1-0

[Event "*** Titled Tuesday Blitz"]
[Site "Chess.com"]
[Date "2021.04.20"]
[Round "2"]
[White "svilson23"]
[Black "nikitakhoroshev"]
[Result "1-0"]
[WhiteElo "2260"]
[BlackElo "2624"]
[TimeControl "180+1"]
[EndTime "10:12:52 PDT"]
[Termination "svilson23 won by resignation"]

1. d4 {[%clk 0:03:00.9]} 1... Nf6 {[%clk 0:02:58]} 2. Bg5 {[%clk 0:03:01.4]}
2... Ne4 {[%clk 0:02:57.4]} 3. Bf4 {[%clk 0:03:01.5]} 3... e5 {[%clk 0:02:57.6]}
4. dxe5 {[%clk 0:02:51.7]} 4... d5 {[%clk 0:02:57.1]} 5. f3 {[%clk 0:02:39.8]}
5... g5 {[%clk 0:02:36.1]} 6. Bg3 {[%clk 0:02:33.5]} 6... Nxg3 {[%clk
0:02:31.9]} 7. hxg3 {[%clk 0:02:34.4]} 7... Bg7 {[%clk 0:02:28.6]} 8. f4 {[%clk
0:02:34.8]} 8... f6 {[%clk 0:02:18.3]} 9. e4 {[%clk 0:02:26.2]} 9... dxe4 {[%clk
0:02:13.1]} 10. Qh5+ {[%clk 0:02:26.4]} 10... Kf8 {[%clk 0:02:12.9]} 11. Nc3
{[%clk 0:02:26.4]} 11... c6 {[%clk 0:01:54.9]} 12. Bc4 {[%clk 0:02:20.1]} 12...
Qe7 {[%clk 0:01:54.8]} 13. O-O-O {[%clk 0:02:07.4]} 13... Bf5 {[%clk 0:01:53.5]}
14. Rd8+ {[%clk 0:02:04.7]} 1-0

[Event "*** Titled Tuesday Blitz"]
[Site "Chess.com"]
[Date "2021.04.20"]
[Round "2"]
[White "winniethepooh04"]
[Black "RenarddesSurfaces"]
[Result "1-0"]
[WhiteElo "2276"]
[BlackElo "2436"]
[TimeControl "180+1"]
[EndTime "10:13:17 PDT"]
[Termination "winniethepooh04 won by resignation"]

1. e4 {[%clk 0:03:00.9]} 1... e5 {[%clk 0:02:58.3]} 2. Nf3 {[%clk 0:03:00.4]}
2... Nc6 {[%clk 0:02:56.7]} 3. Bc4 {[%clk 0:02:58.5]} 3... Nf6 {[%clk
0:02:56.4]} 4. d3 {[%clk 0:02:55.3]} 4... Bc5 {[%clk 0:02:55.5]} 5. c3 {[%clk
0:02:55]} 5... O-O {[%clk 0:02:53.7]} 6. O-O {[%clk 0:02:52.8]} 6... d6 {[%clk
0:02:54]} 7. d4 {[%clk 0:02:52.3]} 7... Bb6 {[%clk 0:02:47.4]} 8. dxe5 {[%clk
0:02:51]} 8... Nxe5 {[%clk 0:02:45.6]} 9. Nxe5 {[%clk 0:02:50.3]} 9... dxe5
{[%clk 0:02:46.5]} 10. Qxd8 {[%clk 0:02:48.5]} 10... Rxd8 {[%clk 0:02:47.4]} 11.
Bg5 {[%clk 0:02:48.5]} 11... h6 {[%clk 0:02:39.9]} 12. Bxf6 {[%clk 0:02:43.9]}
12... gxf6 {[%clk 0:02:40.8]} 13. Na3 {[%clk 0:02:40.3]} 13... Bg4 {[%clk
0:02:36.1]} 14. h3 {[%clk 0:02:37.8]} 14... Be6 {[%clk 0:02:32.8]} 15. Bxe6
{[%clk 0:02:33.7]} 15... fxe6 {[%clk 0:02:33.7]} 16. Nc4 {[%clk 0:02:34.1]}
16... Bc5 {[%clk 0:02:31.4]} 17. Kh2 {[%clk 0:02:17.7]} 17... b5 {[%clk
0:02:30.1]} 18. Na5 {[%clk 0:02:11.1]} 18... Rd2 {[%clk 0:02:29]} 19. Nb3 {[%clk
0:02:10.5]} 19... Rxb2 {[%clk 0:02:18.1]} 20. Nxc5 {[%clk 0:02:10]} 20... Kf7
{[%clk 0:02:18.8]} 21. Rab1 {[%clk 0:02:05.5]} 21... Rxa2 {[%clk 0:02:18]} 22.
Rxb5 {[%clk 0:02:05.9]} 22... a5 {[%clk 0:02:18.2]} 23. Rb7 {[%clk 0:02:03.2]}
23... a4 {[%clk 0:02:18.7]} 24. Rxc7+ {[%clk 0:02:03]} 24... Kg6 {[%clk
0:02:19.2]} 25. Nxe6 {[%clk 0:02:02.4]} 25... a3 {[%clk 0:02:19.4]} 26. Rg7+
{[%clk 0:02:01.9]} 26... Kh5 {[%clk 0:02:18.9]} 27. g4+ {[%clk 0:02:01.4]} 27...
Kh4 {[%clk 0:02:19.1]} 28. Rh7 {[%clk 0:01:50.3]} 1-0

[Event "*** Titled Tuesday Blitz"]
[Site "Chess.com"]
[Date "2021.04.20"]
[Round "2"]
[White "KarateBaby"]
[Black "Apocalyps999"]
[Result "0-1"]
[WhiteElo "2211"]
[BlackElo "2446"]
[TimeControl "180+1"]
[EndTime "10:13:19 PDT"]
[Termination "Apocalyps999 won by resignation"]

1. Nf3 {[%clk 0:02:52.5]} 1... d5 {[%clk 0:02:58]} 2. c4 {[%clk 0:02:53.4]} 2...
c6 {[%clk 0:02:58.1]} 3. e3 {[%clk 0:02:53.8]} 3... Nf6 {[%clk 0:02:57.7]} 4.
Nc3 {[%clk 0:02:54.7]} 4... Nbd7 {[%clk 0:02:57.7]} 5. Qc2 {[%clk 0:02:52.6]}
5... e5 {[%clk 0:02:57.6]} 6. cxd5 {[%clk 0:02:52.7]} 6... Nxd5 {[%clk
0:02:58.5]} 7. d4 {[%clk 0:02:47.9]} 7... Bd6 {[%clk 0:02:58.6]} 8. dxe5 {[%clk
0:02:45.5]} 8... Nxe5 {[%clk 0:02:59.5]} 9. Nxe5 {[%clk 0:02:44.6]} 9... Bxe5
{[%clk 0:03:00.4]} 10. Bd3 {[%clk 0:02:45.1]} 10... Nxc3 {[%clk 0:02:53.5]} 11.
bxc3 {[%clk 0:02:46]} 11... g6 {[%clk 0:02:49.2]} 12. Ba3 {[%clk 0:02:24.3]}
12... Qa5 {[%clk 0:02:47]} 13. Bb4 {[%clk 0:02:21.6]} 13... Qb6 {[%clk
0:02:44.7]} 14. Rb1 {[%clk 0:02:17.1]} 14... c5 {[%clk 0:02:42.5]} 15. Ba3
{[%clk 0:02:16.9]} 15... Qa5 {[%clk 0:02:42.6]} 16. Bb5+ {[%clk 0:02:06.4]}
16... Bd7 {[%clk 0:02:41.6]} 17. Bxd7+ {[%clk 0:02:04.3]} 17... Kxd7 {[%clk
0:02:41.4]} 18. Rxb7+ {[%clk 0:02:04.4]} 18... Kc8 {[%clk 0:02:38.3]} 19. Rb3
{[%clk 0:01:58.6]} 19... c4 {[%clk 0:02:38.2]} 20. Qe4 {[%clk 0:01:57.3]} 20...
cxb3 {[%clk 0:02:28.8]} 21. Qxa8+ {[%clk 0:01:47.8]} 21... Kc7 {[%clk
0:02:28.3]} 22. Bb4 {[%clk 0:01:32.4]} 22... Bxc3+ {[%clk 0:02:18.2]} 0-1

[Event "*** Titled Tuesday Blitz"]
[Site "Chess.com"]
[Date "2021.04.20"]
[Round "2"]
[White "ARMQUEEN"]
[Black "Legendinunknown"]
[Result "0-1"]
[WhiteElo "2243"]
[BlackElo "2574"]
[TimeControl "180+1"]
[EndTime "10:13:25 PDT"]
[Termination "Legendinunknown won by resignation"]

1. e4 {[%clk 0:03:00.9]} 1... e5 {[%clk 0:02:58.8]} 2. Nf3 {[%clk 0:03:00.3]}
2... Nc6 {[%clk 0:02:57.2]} 3. Bc4 {[%clk 0:02:59.6]} 3... Nf6 {[%clk
0:02:56.8]} 4. Ng5 {[%clk 0:02:59]} 4... d5 {[%clk 0:02:55.7]} 5. exd5 {[%clk
0:02:59.9]} 5... Nd4 {[%clk 0:02:54.8]} 6. c3 {[%clk 0:02:54.1]} 6... b5 {[%clk
0:02:49.4]} 7. cxd4 {[%clk 0:02:50.1]} 7... bxc4 {[%clk 0:02:48.1]} 8. dxe5
{[%clk 0:02:50.3]} 8... Nxd5 {[%clk 0:02:30.8]} 9. Qf3 {[%clk 0:02:49.1]} 9...
Be6 {[%clk 0:02:21.9]} 10. Nxe6 {[%clk 0:02:46.6]} 10... fxe6 {[%clk 0:02:22.8]}
11. Nc3 {[%clk 0:02:45]} 11... Be7 {[%clk 0:02:17.8]} 12. Qh5+ {[%clk
0:02:41.6]} 12... g6 {[%clk 0:02:15.6]} 13. Qf3 {[%clk 0:02:41.5]} 13... Rf8
{[%clk 0:02:10.1]} 14. Qe2 {[%clk 0:02:37.8]} 14... Nf4 {[%clk 0:02:05.5]} 15.
Qxc4 {[%clk 0:02:33.5]} 15... Nd3+ {[%clk 0:01:57]} 16. Ke2 {[%clk 0:02:32.6]}
16... Rxf2+ {[%clk 0:01:54.8]} 17. Kd1 {[%clk 0:02:32.4]} 17... Qd7 {[%clk
0:01:51.5]} 18. Nb5 {[%clk 0:02:14]} 18... Nxb2+ {[%clk 0:01:48.7]} 19. Ke1
{[%clk 0:02:06]} 19... Nxc4 {[%clk 0:01:49.6]} 20. Kxf2 {[%clk 0:02:01.1]} 20...
Qxb5 {[%clk 0:01:45.1]} 0-1

[Event "*** Titled Tuesday Blitz"]
[Site "Chess.com"]
[Date "2021.04.20"]
[Round "2"]
[White "Kale36"]
[Black "Aslanov_Umid"]
[Result "1-0"]
[WhiteElo "2289"]
[BlackElo "2453"]
[TimeControl "180+1"]
[EndTime "10:13:26 PDT"]
[Termination "Kale36 won by resignation"]

1. d4 {[%clk 0:03:00.9]} 1... d5 {[%clk 0:02:59.4]} 2. Nc3 {[%clk 0:03:00.2]}
2... Nf6 {[%clk 0:02:58.5]} 3. Bg5 {[%clk 0:02:59.6]} 3... c6 {[%clk 0:02:57.7]}
4. e3 {[%clk 0:02:59.2]} 4... g6 {[%clk 0:02:57]} 5. f4 {[%clk 0:02:57.4]} 5...
Bg7 {[%clk 0:02:57.1]} 6. Nf3 {[%clk 0:02:57.3]} 6... O-O {[%clk 0:02:57.4]} 7.
Bd3 {[%clk 0:02:56.6]} 7... Bg4 {[%clk 0:02:56.6]} 8. h3 {[%clk 0:02:53.6]} 8...
Bxf3 {[%clk 0:02:50.5]} 9. Qxf3 {[%clk 0:02:54.5]} 9... Nfd7 {[%clk 0:02:46.8]}
10. O-O {[%clk 0:02:51.1]} 10... f6 {[%clk 0:02:46.1]} 11. Bh4 {[%clk
0:02:51.1]} 11... Qc7 {[%clk 0:02:46.4]} 12. f5 {[%clk 0:02:34.8]} 12... g5
{[%clk 0:02:37.4]} 13. Bg3 {[%clk 0:02:34.7]} 13... Qb6 {[%clk 0:02:33.9]} 14.
Rab1 {[%clk 0:02:34.8]} 14... Na6 {[%clk 0:02:32]} 15. b4 {[%clk 0:02:32.3]}
15... Qd8 {[%clk 0:02:02.3]} 16. b5 {[%clk 0:02:26.6]} 16... cxb5 {[%clk
0:02:01.6]} 17. Qxd5+ {[%clk 0:02:25.3]} 17... Kh8 {[%clk 0:02:00.7]} 18. Qxb7
{[%clk 0:02:21.2]} 18... b4 {[%clk 0:01:49.7]} 19. Ne2 {[%clk 0:02:10.9]} 1-0